bitfinex/quotes_ETHUSD_20240603
["timestamp","ask_amount","ask_price","bid_price","bid_amount"]
[1717393907673,3.851737,3816.9,3816.3,0.13305994]
[1717393908107,3.851737,3816.9,3816.2,0.548]
[1717393908480,3.851737,3816.9,3816.3,0.13305994]
[1717393908878,3.851737,3816.9,3816.2,0.548]
[1717393909116,4.96937,3817.0,3816.2,0.548]
[1717393909318,4.96937,3817.0,3816.3,0.13305994]
[1717393909616,4.96937,3817.0,3816.2,0.548]
[1717393909788,4.96937,3817.0,3816.4,0.13303284]
[1717393909985,4.96937,3817.0,3816.2,0.548]
[1717393910201,4.96937,3817.0,3816.5,0.13300573]
[1717393910405,4.96937,3817.0,3816.2,0.548]
[1717393910712,4.96937,3817.0,3816.6,0.13297863]
[1717393911021,4.96937,3817.0,3816.2,0.548]
[1717393911220,4.96937,3817.0,3816.7,0.13295152]
[1717393911525,4.96937,3817.0,3816.2,0.548]
[1717393911891,4.96937,3817.0,3816.3,0.13298478]
[1717393912513,4.96937,3817.0,3816.2,0.548]
[1717393912885,4.96937,3817.0,3816.3,0.13298478]
[1717393913116,5.521107,3817.0,3816.3,0.13298478]
[1717393913414,5.521107,3817.0,3816.2,0.548]
[1717393913617,5.521107,3817.0,3816.4,0.13295767]
[1717393913782,5.521107,3817.0,3816.2,0.548]
[1717393913983,5.521107,3817.0,3816.5,0.13293056]
[1717393914297,2.6202,3816.5,3815.5,9.90083]
[1717393914501,2.3416,3816.4,3815.8,0.548]
[1717393915003,2.3416,3816.4,3815.9,0.13309322]
[1717393915924,2.3416,3816.4,3815.9,0.548]
[1717393916220,2.3416,3816.4,3816.0,0.1330661]
[1717393918018,2.83778,3816.4,3816.0,0.1330661]
[1717393918220,2.367,3816.2,3816.0,0.1330661]
[1717393918426,2.367,3816.2,3815.4,0.548]
[1717393918724,2.367,3816.2,3816.1,0.13302697]
[1717393918880,2.367,3816.2,3815.4,0.548]
[1717393919336,2.62047,3816.1,3815.5,0.13318965]
[1717393920850,2.62047,3816.1,3815.6,0.13316253]
[1717393921056,3.174017,3816.1,3815.1,2.62115]
[1717393921261,3.174017,3816.1,3815.7,0.13313542]
[1717393921262,2.62047,3816.1,3815.7,0.13313542]
[1717393921412,2.62047,3816.1,3815.2,0.548]
[1717393921612,2.62047,3816.1,3815.8,0.13331277]
[1717393921847,2.62047,3816.1,3815.2,0.548]
[1717393922055,2.62047,3816.1,3815.9,0.13328566]
[1717393922215,2.62047,3816.1,3815.2,0.548]
[1717393922416,2.62047,3816.1,3816.0,0.13325854]
[1717393922649,2.62047,3816.1,3815.2,0.548]
[1717393923159,0.548,3816.4,3814.9,2.3765]
[1717393923160,2.6207,3815.8,3814.9,2.3765]
[1717393923464,2.6207,3815.8,3815.3,0.13344836]
[1717393923666,2.6207,3815.8,3815.2,0.548]
[1717393923830,2.6207,3815.8,3815.4,0.13342124]
[1717393924033,2.6207,3815.8,3815.2,0.548]
[1717393924333,2.6207,3815.8,3815.5,0.13339412]
[1717393924556,2.6207,3815.8,3815.0,0.23765]
[1717393924731,2.6207,3815.8,3815.6,0.133367]
[1717393925075,2.6207,3815.8,3815.4,0.548]
[1717393925423,2.6207,3815.8,3814.9,2.3765]
[1717393925807,2.6207,3815.8,3815.3,0.548]
[1717393926319,2.6207,3815.8,3815.4,0.13342124]
[1717393926732,2.4802,3815.7,3815.4,0.13342124]
[1717393926939,2.4802,3815.7,3815.0,0.548]
[1717393927377,2.4802,3815.7,3815.1,0.13350261]
[1717393927514,2.99029,3815.7,3815.1,0.13350261]
[1717393927719,2.99029,3815.7,3814.8,0.548]
[1717393927914,2.4802,3815.7,3815.2,0.13347548]
[1717393928171,2.4802,3815.7,3814.8,0.548]
[1717393928469,2.4802,3815.7,3815.3,0.13344836]
[1717393928624,2.4802,3815.7,3814.8,0.548]
[1717393928828,2.4802,3815.7,3815.4,0.13356259]
[1717393929057,3.04509,3815.7,3814.8,0.548]
[1717393929236,2.62086,3815.6,3815.5,0.13353547]
[1717393929419,2.62086,3815.6,3814.6,2.7496022]
[1717393929620,2.62086,3815.6,3815.5,0.1335836]
[1717393929830,2.62086,3815.6,3814.6,3.2976022]
[1717393930072,2.62086,3815.6,3815.5,0.1335836]
[1717393930271,2.62086,3815.6,3814.7,0.55]
[1717393930631,2.62086,3815.6,3814.8,0.13377347]
[1717393932461,2.4797,3815.5,3814.8,0.13377347]
[1717393932951,2.4797,3815.5,3814.6,3.2976022]
[1717393933155,2.4797,3815.5,3814.6,3.86984242]
[1717393933514,2.4797,3815.5,3814.7,0.13396604]
[1717393933742,2.3563,3815.0,3814.7,0.13396604]
[1717393933944,2.3563,3815.0,3814.7,0.68196604]
[1717393934217,2.3563,3815.0,3814.9,0.548]
[1717393934556,2.62097,3815.4,3814.9,0.548]
[1717393934732,2.62097,3815.4,3815.3,0.548]
[1717393934934,2.62097,3815.4,3815.1,0.548]
[1717393935240,2.62097,3815.4,3815.2,0.13383041]
[1717393935651,2.4498,3815.6,3815.2,0.13383041]
[1717393940263,2.6209,3815.5,3815.2,0.13383041]
[1717393940568,2.83577,3815.4,3814.6,0.6761522]
[1717393940774,2.3287,3815.4,3814.6,0.6761522]
[1717393940941,2.3287,3815.4,3815.3,0.13388151]
[1717393941140,2.3287,3815.4,3814.6,0.1281522]
[1717393941141,2.3287,3815.4,3814.7,0.548]
[1717393941548,2.3287,3815.4,3814.8,0.13401713]
[1717393941745,2.62105,3815.3,3814.8,0.13401713]
[1717393942063,2.4146,3815.2,3814.6,0.6761522]
[1717393942272,2.4146,3815.2,3814.9,0.13399001]
[1717393942473,2.4146,3815.2,3814.6,0.6761522]
[1717393942935,2.4146,3815.2,3814.7,0.134294]
[1717393943137,2.918165,3815.2,3814.7,0.134294]
[1717393943337,2.62119,3815.1,3814.7,0.134294]
[1717393943638,2.3035,3815.0,3814.7,0.134294]
[1717393943858,2.3035,3815.0,3814.6,0.1281522]
[1717393944944,2.3035,3815.0,3814.7,0.134294]
[1717393945145,2.8463255,3815.0,3814.6,0.1281522]
[1717393945548,2.8463255,3815.0,3814.7,0.134294]
[1717393945951,2.8463255,3815.0,3814.6,0.1281522]
[1717393946359,2.8463255,3815.0,3814.7,0.134294]
[1717393946566,2.8463255,3815.0,3814.6,0.1281522]
[1717393946739,2.8463255,3815.0,3814.7,0.134294]
[1717393946937,2.3035,3815.0,3814.7,0.134294]
[1717393948143,2.6213,3814.9,3814.7,0.134294]
[1717393948340,2.477,3814.8,3814.6,0.1281522]
[1717393950140,5.43543,3814.7,3814.6,0.1281522]
[1717393952086,4.88743,3814.7,3814.6,0.1281522]
[1717393952447,5.376173,3814.7,3814.6,0.1281522]
[1717393953402,8.376173,3814.7,3814.6,0.1281522]
[1717393958706,8.94307573,3814.7,3814.6,0.1281522]
[1717393959158,11.56450573,3814.7,3814.6,2.2e-06]
[1717393959494,8.94307573,3814.7,3814.6,2.2e-06]
[1717393959801,8.376173,3814.7,3814.6,2.2e-06]
[1717393960855,6.110173,3814.7,3814.6,2.2e-06]
[1717393961055,8.397273,3814.7,3814.6,2.2e-06]
[1717393968423,6.110173,3814.7,3814.6,2.2e-06]
[1717393969363,5.62143,3814.7,3814.6,2.2e-06]
[1717393969771,5.62143,3814.7,3814.6,0.13193901]
[1717393972173,2.62116,3815.1,3814.6,0.13193901]
[1717393972377,2.62116,3815.1,3814.6,2.2e-06]
[1717393972611,3.0,3815.0,3814.6,2.2e-06]
[1717393974397,3.0,3815.0,3814.7,0.13190967]
[1717393977418,3.0,3815.0,3814.8,0.55]
[1717393977597,3.0,3815.0,3814.8,0.68176512]
[1717393984127,2.62091,3815.5,3814.8,0.68176512]
[1717393984425,3.0,3815.4,3814.9,2.2776]
[1717393984612,2.62063,3815.9,3815.0,1.099]
[1717393984816,0.56665867,3815.8,3815.3,0.549]
[1717393985010,0.56665867,3815.8,3815.1,0.13147897]
[1717393985011,2.62063,3815.9,3815.4,0.55]
[1717393985186,0.316963,3815.8,3815.5,0.13133737]
[1717393986291,3.316963,3815.8,3815.5,0.13133737]
[1717393990512,2.62075,3815.7,3815.5,0.13133737]
[1717393992987,2.62075,3815.7,3814.8,2.9422]
[1717393993185,2.62075,3815.7,3814.9,0.68128939]
[1717393993384,0.8890513,3815.6,3814.9,0.68128939]
[1717393995950,0.549,3815.2,3814.9,0.13128939]
[1717393996098,0.549,3815.4,3814.9,0.13128939]
[1717393996304,3.17015,3815.2,3814.6,2.2e-06]
[1717393996604,2.938175,3815.1,3814.6,2.2e-06]
[1717393996798,2.938175,3815.1,3814.7,0.13134365]
[1717393998408,5.0737,3814.9,3814.7,0.13134365]
[1717394001609,2.6213,3814.9,3814.7,0.13134365]
[1717394006013,2.6213,3814.9,3814.6,2.4249022]
[1717394006207,2.6213,3814.9,3814.7,0.13149718]
[1717394016556,2.88343,3814.9,3814.7,0.13149718]
[1717394019223,2.4063,3814.8,3814.7,0.13149718]
[1717394020330,2.9553,3814.8,3814.7,0.13149718]
[1717394020532,2.62143,3814.7,3814.6,2.2e-06]
[1717394020748,6.18824069,3814.7,3814.6,2.2e-06]
[1717394020921,7.42880776,3814.7,3814.6,2.2e-06]
[1717394021858,6.86199707,3814.7,3814.6,2.2e-06]
[1717394022157,7.42880964,3814.7,3814.6,2.2e-06]
[1717394022365,9.78350964,3814.7,3814.6,2.2e-06]
[1717394023214,9.78353376,3814.7,3814.6,2.2e-06]
[1717394024049,9.21669707,3814.7,3814.6,2.2e-06]
[1717394024435,9.78357314,3814.7,3814.6,2.2e-06]
[1717394024752,10.33257314,3814.7,3814.6,2.2e-06]
[1717394024959,6.18830607,3814.7,3814.6,2.2e-06]
[1717394025144,5.62143,3814.7,3814.6,2.2e-06]
[1717394025323,2.62095,3815.5,3814.6,0.68080355]
[1717394025522,0.56676778,3815.4,3814.7,2.8755]
[1717394025722,2.62105,3815.3,3814.7,3.00725916]
[1717394026359,2.62105,3815.3,3814.7,0.68175916]
[1717394027058,2.62116,3815.1,3814.7,0.68175916]
[1717394036300,2.62088,3815.6,3815.0,0.549]
[1717394036470,2.62088,3815.6,3814.8,2.2979]
[1717394036471,2.62088,3815.6,3815.2,0.549]
[1717394036858,2.62088,3815.6,3815.3,0.13131034]
[1717394037706,2.62088,3815.6,3814.9,0.549]
[1717394037862,2.62088,3815.6,3815.0,0.55]
[1717394038400,2.62088,3815.6,3815.1,0.13136458]
[1717394038572,2.62088,3815.6,3815.2,0.55]
[1717394038973,2.62088,3815.6,3815.3,0.13131034]
[1717394039486,2.62088,3815.6,3815.4,0.13128322]
[1717394039801,2.62088,3815.6,3814.9,0.55]
[1717394039999,2.62088,3815.6,3815.5,0.1312561]
[1717394040201,2.62088,3815.6,3814.9,0.55]
[1717394040364,2.62088,3815.6,3815.5,0.1312561]
[1717394040903,2.62088,3815.6,3814.9,0.55]
[1717394041098,2.62088,3815.6,3815.0,0.13139171]
[1717394041406,2.62088,3815.6,3815.1,0.55]
[1717394041754,2.62088,3815.6,3815.2,0.13133746]
[1717394043073,5.62054,3816.0,3815.3,2.401]
[1717394043278,5.62054,3816.0,3815.4,0.55]
[1717394043491,5.62054,3816.0,3815.4,0.68114476]
[1717394044394,6.35424388,3816.0,3815.4,0.68114476]
[1717394044738,3.0,3816.0,3815.4,0.68114476]
[1717394044859,5.62052,3816.1,3815.4,0.68114476]
[1717394050771,3.0,3816.1,3815.4,0.68114476]
[1717394050970,3.41047469,3816.4,3815.4,0.68114476]
[1717394051197,0.30306747,3816.3,3815.4,0.68114476]
[1717394051525,0.30306747,3816.3,3815.5,0.13073543]
[1717394052003,2.62042,3816.2,3815.5,0.13073543]
[1717394058225,2.6206,3816.0,3815.5,0.13073543]
[1717394058560,2.6206,3816.0,3815.3,2.401]
[1717394058718,2.6206,3816.0,3815.4,0.13069635]
[1717394060297,2.6206,3816.0,3815.5,0.549]
[1717394060496,2.6206,3816.0,3815.6,0.1306692]
[1717394061933,2.6206,3816.0,3815.3,2.95]
[1717394062138,2.6206,3816.0,3815.4,0.68072343]
[1717394063317,2.96786675,3816.0,3815.4,0.68072343]
[1717394069416,2.6206,3816.0,3815.4,0.68072343]
[1717394072775,2.6206,3816.0,3815.5,2.351]
[1717394072946,2.6206,3816.0,3815.6,0.13064511]
[1717394073141,2.6206,3816.0,3815.7,2.351]
[1717394073361,2.6206,3816.0,3815.8,0.13059088]
[1717394073569,2.6206,3816.0,3815.7,2.351]
[1717394073749,2.6206,3816.0,3815.8,0.13059088]
[1717394073963,2.6206,3816.0,3815.7,2.351]
[1717394074262,2.6206,3816.0,3815.8,0.13059088]
[1717394074757,2.6206,3816.0,3815.9,0.13056376]
[1717394074958,2.6206,3816.0,3815.7,2.351]
[1717394075155,2.6206,3816.0,3815.8,0.13059088]
[1717394075575,2.6206,3816.0,3815.7,2.351]
[1717394075744,2.6206,3816.0,3815.8,0.13059088]
[1717394075951,0.30306747,3816.3,3815.7,2.351]
[1717394076133,6.03077469,3816.4,3815.8,0.13059088]
[1717394076334,5.6203,3816.4,3815.7,2.351]
[1717394076536,5.6203,3816.4,3815.8,0.13059088]
[1717394076769,5.6203,3816.4,3815.7,2.351]
[1717394077028,5.6203,3816.4,3815.8,0.13059088]
[1717394077234,6.23723,3816.4,3815.8,0.13059088]
[1717394077552,6.23723,3816.4,3815.7,2.351]
[1717394077752,6.23723,3816.4,3815.8,0.13059088]
[1717394078070,5.6203,3816.4,3816.0,2.4103]
[1717394078380,5.6203,3816.4,3816.1,0.13050954]
[1717394078602,2.62002,3816.8,3816.2,0.549]
[1717394079092,2.62002,3816.8,3816.0,2.4103]
[1717394079093,2.62002,3816.8,3816.3,0.13045532]
[1717394079474,2.62002,3816.8,3816.0,2.9593]
[1717394079697,2.62002,3816.8,3816.5,2.4547]
[1717394079844,3.0,3816.7,3816.5,2.4547]
[1717394080197,3.0,3816.7,3816.6,0.13037401]
[1717394082879,2.62013,3816.6,3816.2,2.2743]
[1717394089562,2.62013,3816.6,3816.3,0.13024776]
[1717394089765,2.62013,3816.6,3816.2,2.2743]
[1717394089969,2.62013,3816.6,3816.3,0.13024776]
[1717394090232,2.62013,3816.6,3816.2,2.2743]
[1717394090518,2.62013,3816.6,3816.4,0.13022065]
[1717394090680,2.62013,3816.6,3816.3,0.13024776]
[1717394090880,2.62013,3816.6,3816.5,0.13019355]
[1717394091081,2.62013,3816.6,3816.4,0.13022065]
[1717394091302,2.62013,3816.6,3816.5,0.13019355]
[1717394091699,2.62013,3816.6,3816.2,2.2743]
[1717394092226,2.62013,3816.6,3816.3,0.13024776]
[1717394092631,2.62013,3816.6,3816.2,2.2743]
[1717394093142,2.62013,3816.6,3816.3,0.13024776]
[1717394093487,2.62013,3816.6,3816.2,2.2743]
[1717394093797,2.62013,3816.6,3816.3,0.13024776]
[1717394093981,2.62013,3816.6,3816.2,2.2743]
[1717394094418,2.62013,3816.6,3816.3,0.13024776]
[1717394094795,2.62013,3816.6,3816.2,2.2743]
[1717394095003,2.62013,3816.6,3816.3,0.13031696]
[1717394095209,2.62013,3816.6,3816.2,2.2743]
[1717394095422,2.62013,3816.6,3816.4,0.13028985]
[1717394095633,2.62013,3816.6,3816.3,0.13031696]
[1717394095808,2.62013,3816.6,3816.5,0.13026275]
[1717394096015,2.62013,3816.6,3816.4,0.13028985]
[1717394096286,2.62013,3816.6,3816.5,0.13026275]
[1717394097030,2.62013,3816.6,3816.2,2.2743]
[1717394097235,2.62013,3816.6,3816.5,0.13026275]
[1717394097405,2.62013,3816.6,3816.2,2.2743]
[1717394097739,2.62013,3816.6,3816.3,0.13031696]
[1717394098106,2.62013,3816.6,3816.2,2.2743]
[1717394098434,2.62013,3816.6,3816.3,0.13031696]
[1717394098935,2.62013,3816.6,3816.2,2.2743]
[1717394099116,2.62013,3816.6,3816.4,0.13028985]
[1717394099286,2.62013,3816.6,3816.3,0.13031696]
[1717394099486,2.62013,3816.6,3816.5,0.13026275]
[1717394099736,2.62013,3816.6,3816.4,0.13028985]
[1717394099952,2.62013,3816.6,3816.5,0.13026275]
[1717394100244,2.62013,3816.6,3816.2,2.2743]
[1717394100904,2.62013,3816.6,3816.3,0.13031696]
[1717394101103,3.1395882,3816.6,3816.3,0.13031696]
[1717394101286,3.1395882,3816.6,3816.2,2.2743]
[1717394101491,3.1395882,3816.6,3816.4,0.13028985]
[1717394101688,3.1395882,3816.6,3816.2,2.2743]
[1717394102024,3.1395882,3816.6,3816.3,0.13031696]
[1717394102389,3.1395882,3816.6,3816.2,2.2743]
[1717394102636,3.1395882,3816.6,3816.3,0.13031696]
[1717394103127,3.1395882,3816.6,3816.2,2.2743]
[1717394103299,3.1395882,3816.6,3816.4,0.13028985]
[1717394103500,3.1395882,3816.6,3816.3,0.13031696]
[1717394103706,3.1395882,3816.6,3815.9,3.5581]
[1717394104005,3.1395882,3816.6,3816.4,0.13028985]
[1717394104206,0.61395882,3816.5,3815.9,3.5581]
[1717394104407,2.62013,3816.6,3816.5,0.13026275]
[1717394104642,2.62013,3816.6,3815.9,3.0091]
[1717394104938,2.62013,3816.6,3816.5,0.13026875]
[1717394105142,2.62013,3816.6,3815.9,3.5581]
[1717394105300,2.62013,3816.6,3816.5,0.13026875]
[1717394105503,3.237043,3816.6,3815.9,3.5581]
[1717394105701,2.62013,3816.6,3816.5,0.13026875]
[1717394105921,2.62013,3816.6,3815.9,3.5581]
[1717394106120,2.62013,3816.6,3816.5,0.13026875]
[1717394106733,2.62013,3816.6,3815.9,3.0091]
[1717394107208,2.62013,3816.6,3816.0,0.13040429]
[1717394107413,2.62013,3816.6,3816.1,0.55]
[1717394107635,3.237043,3816.6,3816.2,0.13035007]
[1717394108311,2.62013,3816.6,3816.2,0.13035007]
[1717394109530,2.62013,3816.6,3816.3,2.3184]
[1717394109737,2.62013,3816.6,3816.4,0.13029585]
[1717394110468,3.0,3816.7,3816.4,0.13029585]
[1717394110627,3.0,3816.9,3816.4,0.13029585]
[1717394111533,3.0,3816.9,3816.3,2.3184]
[1717394111738,3.0,3816.9,3816.4,0.55]
[1717394112066,3.0,3816.9,3816.5,0.13008523]
[1717394112666,3.0,3816.9,3816.4,0.55]
[1717394112963,2.61987,3817.0,3816.5,0.28684]
[1717394113321,2.61987,3817.0,3816.6,0.13001001]
[1717394113521,2.61987,3817.0,3816.4,0.55]
[1717394113740,2.61987,3817.0,3816.5,0.13003711]
[1717394120824,2.6196,3817.4,3816.5,0.13003711]
[1717394121031,3.0,3817.3,3816.7,2.3462]
[1717394121246,3.0,3817.4,3816.7,2.3462]
[1717394121558,1.31429,3817.4,3816.8,0.12982947]
[1717394121761,4.86329,3817.4,3816.7,2.3462]
[1717394122165,4.86329,3817.4,3816.8,0.12982947]
[1717394122357,2.61973,3817.2,3816.8,0.12982947]
[1717394122668,3.599422,3817.2,3816.7,2.3462]
[1717394123041,3.599422,3817.2,3816.8,0.12982947]
[1717394123363,3.599422,3817.2,3816.4,3.014]
[1717394123364,4.148422,3817.2,3816.4,3.014]
[1717394123763,4.148422,3817.2,3816.5,0.12991078]
[1717394126668,3.599422,3817.2,3816.5,0.12991078]
[1717394133572,3.1689,3817.0,3816.5,0.12991078]
[1717394133798,0.549,3816.8,3815.7,2.4533]
[1717394133938,0.549,3816.8,3815.8,0.55]
[1717394134273,0.549,3816.8,3815.8,1.2572961]
[1717394134630,2.4412,3816.9,3815.8,1.2572961]
[1717394134971,2.4412,3816.9,3815.9,0.63313761]
[1717394134972,2.62001,3816.8,3815.9,0.63313761]
[1717394135171,2.62001,3816.8,3816.0,0.55]
[1717394135351,2.62001,3816.8,3816.0,0.70824039]
[1717394135746,2.62001,3816.8,3816.2,0.549]
[1717394135951,2.62001,3816.8,3816.3,0.70815684]
[1717394136981,2.62001,3816.8,3816.3,0.15815684]
[1717394137139,2.62001,3816.8,3815.9,0.63313761]
[1717394137339,2.62001,3816.8,3816.0,1.01483678]
[1717394141321,0.549,3816.9,3816.0,0.70824039]
[1717394141455,2.62027,3816.4,3816.0,0.70824039]
[1717394145170,2.62001,3816.8,3816.0,1.25724039]
[1717394147477,2.62001,3816.8,3816.1,2.3891]
[1717394147678,2.62001,3816.8,3816.2,0.55]
[1717394147903,2.62001,3816.8,3816.2,0.70819671]
[1717394149181,2.62001,3816.8,3816.2,1.25719671]
[1717394149699,2.62001,3816.8,3816.2,0.70819671]
[1717394152015,2.62001,3816.8,3816.3,0.549]
[1717394152312,2.62001,3816.8,3816.4,0.70814101]
[1717394161111,2.3124,3816.7,3816.4,0.70814101]
[1717394161456,2.3124,3816.5,3815.8,2.62062]
[1717394161744,2.3124,3816.5,3815.9,0.55]
[1717394161950,2.3124,3816.5,3815.9,0.70813891]
[1717394162255,0.549,3816.4,3815.9,0.70813891]
[1717394162550,2.62034,3816.3,3815.9,0.70813891]
[1717394163353,2.62034,3816.3,3815.9,0.15813891]
[1717394163648,2.62052,3816.1,3815.3,2.2518]
[1717394163869,2.62052,3816.1,3815.4,0.70830525]
[1717394164094,5.05162,3816.1,3815.4,0.70830525]
[1717394164885,5.6664973,3816.1,3815.4,0.70830525]
[1717394165176,0.566566,3816.0,3815.4,0.70830525]
[1717394166544,2.62064,3815.9,3815.4,0.70830525]
[1717394166742,0.56657672,3815.8,3815.4,0.70830525]
[1717394167796,2.18723739,3815.9,3815.4,0.70830525]
[1717394169477,2.62088,3815.6,3815.4,0.15830525]
[1717394169772,2.4663,3815.5,3815.4,0.15830525]
[1717394170085,2.62103,3815.3,3814.8,2.3659]
[1717394170389,2.62103,3815.3,3814.6,2.2e-06]
[1717394170554,2.62103,3815.3,3814.9,0.1496104]
[1717394170745,2.62103,3815.3,3814.6,2.2736022]
[1717394170946,2.62103,3815.3,3815.0,0.14958254]
[1717394171146,2.62103,3815.3,3814.6,2.2736022]
[1717394171344,2.62103,3815.3,3815.1,0.14955467]
[1717394171586,2.62103,3815.3,3814.6,2.2e-06]
[1717394171791,2.62103,3815.3,3815.2,0.14952681]
[1717394172087,2.62103,3815.3,3814.6,2.2e-06]
[1717394172607,2.62103,3815.3,3814.7,0.14966614]
[1717394172888,2.62103,3815.3,3814.8,0.55]
[1717394173277,2.62103,3815.3,3814.9,0.1496104]
[1717394173887,0.549,3815.6,3814.6,2.2e-06]
[1717394173888,2.62121,3815.1,3814.6,2.2e-06]
[1717394174092,2.62121,3815.1,3815.0,0.14958254]
[1717394174248,2.62121,3815.1,3814.6,2.2e-06]
[1717394174452,2.62121,3815.1,3814.7,0.14966614]
[1717394180667,2.62121,3815.1,3814.7,1.14966614]
[1717394188218,2.9215,3815.2,3814.7,1.14966614]
[1717394188429,2.62121,3815.1,3814.7,1.14966614]
[1717394190902,3.175481,3815.1,3814.7,1.14966614]
[1717394192399,2.6213,3814.9,3814.7,1.14966614]
[1717394196926,2.62103,3815.3,3814.7,1.14966614]
[1717394197143,2.62103,3815.3,3814.8,1.099]
[1717394197298,2.62103,3815.3,3814.8,0.55]
[1717394197603,2.62103,3815.3,3814.9,0.15017966]
[1717394197816,2.62103,3815.3,3815.0,0.55]
[1717394198201,2.62103,3815.3,3815.1,0.15012393]
[1717394198413,0.56666431,3815.2,3815.1,0.15012393]
[1717394198618,0.56666431,3815.2,3814.8,0.55]
[1717394199102,0.56666431,3815.2,3814.9,0.15017966]
[1717394199320,0.56666431,3815.2,3815.0,0.55]
[1717394199528,0.56666431,3815.2,3815.0,0.7001518]
[1717394199823,2.62103,3815.3,3815.0,0.7001518]
[1717394200142,0.56663351,3815.2,3815.0,0.7001518]
[1717394202147,2.62116,3815.1,3815.0,0.1501518]
[1717394202307,2.62116,3815.1,3814.7,1.0]
[1717394202644,3.18779351,3815.1,3814.7,1.0]
[1717394202796,2.62116,3815.1,3814.8,0.1500697]
[1717394203200,2.62116,3815.1,3814.7,1.0]
[1717394203429,2.62116,3815.1,3814.9,0.15004183]
[1717394203609,2.62116,3815.1,3814.8,0.1500697]
[1717394203810,2.62116,3815.1,3815.0,0.15001396]
[1717394204028,2.62116,3815.1,3814.9,0.15004183]
[1717394204210,2.62116,3815.1,3815.0,0.15001396]
[1717394204611,2.62087,3815.6,3814.8,0.549]
[1717394204811,3.56666844,3815.5,3815.0,0.15001396]
[1717394205034,3.56666844,3815.5,3814.9,0.14998789]
[1717394205035,0.56666844,3815.4,3814.9,0.14998789]
[1717394205239,0.56666844,3815.4,3815.2,2.331]
[1717394205437,2.62087,3815.6,3815.2,2.331]
[1717394205438,0.56666844,3815.5,3815.2,2.331]
[1717394205638,0.56666844,3815.5,3815.3,0.14982849]
[1717394205855,2.62087,3815.6,3815.3,0.14982849]
[1717394209210,6.16956,3816.0,3815.3,0.14982849]
[1717394209416,0.56658734,3815.9,3815.2,2.331]
[1717394210025,0.56658734,3815.9,3815.3,0.14982849]
[1717394210210,0.56658734,3815.9,3815.2,2.331]
[1717394210405,0.549,3815.8,3815.2,2.331]
[1717394210648,0.549,3815.8,3815.3,0.14982849]
[1717394213754,2.62076,3815.7,3815.3,0.14982849]
[1717394214223,0.549,3815.6,3815.3,0.14982849]
[1717394214649,1.11562387,3815.6,3814.9,2.4239]
[1717394214848,1.11562387,3815.6,3815.4,0.14980063]
[1717394215051,1.11562387,3815.6,3814.9,2.4239]
[1717394215250,0.549,3815.6,3815.5,0.14977277]
[1717394215461,1.1567936,3815.6,3814.9,2.4239]
[1717394215667,1.72343538,3815.6,3814.9,2.4239]
[1717394216024,1.72343538,3815.6,3815.0,0.14983419]
[1717394216224,1.1567936,3815.6,3815.0,0.14983419]
[1717394216769,3.237736,3815.7,3815.0,0.14983419]
[1717394216926,2.62076,3815.7,3815.0,0.14983419]
[1717394217124,2.62076,3815.7,3815.1,3.3673]
[1717394217524,2.62076,3815.7,3815.2,0.14977512]
[1717394225752,2.62076,3815.7,3815.2,1.14977512]
[1717394228049,2.62049,3816.1,3815.3,0.549]
[1717394228464,2.62049,3816.1,3815.4,2.335]
[1717394228763,2.62049,3816.1,3815.5,0.14951477]
[1717394229393,0.549,3816.0,3815.5,0.14951477]
[1717394230935,1.11557403,3816.0,3815.5,0.14951477]
[1717394232107,0.56657403,3816.0,3815.5,0.14951477]
[1717394235355,3.16949,3816.1,3815.5,0.14951477]
[1717394235561,0.5665716,3816.0,3815.5,0.14951477]
[1717394236410,2.62049,3816.1,3815.5,0.14951477]
[1717394241513,2.62049,3816.1,3815.6,2.2988]
[1717394241702,3.0,3816.4,3815.6,2.2988]
[1717394241703,2.61995,3816.9,3816.1,2.2988]
[1717394241909,0.56652316,3816.8,3816.2,0.549]
[1717394242256,0.56652316,3816.8,3816.3,0.14904338]
[1717394242662,0.56652316,3816.8,3816.1,2.2988]
[1717394242879,0.56652316,3816.8,3816.2,0.14907122]
[1717394243302,3.56652316,3816.8,3816.2,0.14907122]
[1717394243499,3.0,3816.8,3816.2,0.14907122]
[1717394245419,3.0,3816.8,3816.3,2.4629]
[1717394245803,3.0,3816.8,3816.4,0.14901553]
[1717394246625,3.0,3816.8,3816.4,0.69801553]
[1717394246779,3.0,3816.8,3816.4,0.14901553]
[1717394247708,2.61995,3816.9,3816.4,0.14901553]
[1717394247907,2.61965,3817.3,3816.5,0.34606027]
[1717394248097,2.61987,3817.0,3816.6,0.14895984]
[1717394248306,2.61987,3817.0,3816.0,2.9064]
[1717394248619,2.61987,3817.0,3816.1,1.25179507]
[1717394249121,0.549,3816.9,3816.1,1.25179507]
[1717394249899,2.61987,3817.0,3816.1,1.25179507]
[1717394252815,2.8181,3817.1,3816.1,0.14909907]
[1717394253014,2.62012,3816.7,3816.1,0.14909907]
[1717394253236,2.62012,3816.7,3816.0,2.3574]
[1717394253527,2.62012,3816.7,3816.1,0.14893137]
[1717394254529,2.62012,3816.7,3815.5,2.2828]
[1717394254530,0.549,3816.2,3815.5,2.2828]
[1717394254825,0.549,3816.2,3815.6,0.1489329]
[1717394255026,2.62031,3816.4,3815.6,0.1489329]
[1717394255225,2.62046,3816.2,3815.6,0.1489329]
[1717394257834,4.97716,3816.2,3815.6,0.1489329]
[1717394271142,4.97716,3816.2,3815.3,0.549]
[1717394271350,4.97716,3816.2,3815.4,0.1491503]
[1717394272258,2.62065,3815.9,3815.4,0.1491503]
[1717394273712,2.62065,3815.9,3815.2,3.2588]
[1717394273950,2.62065,3815.9,3815.3,0.14917816]
[1717394285781,2.62078,3815.7,3815.3,0.14917816]
[1717394293447,2.62088,3815.5,3815.3,0.14917816]
[1717394293790,3.185418,3815.5,3815.3,0.14917816]
[1717394294076,3.734418,3815.5,3815.3,0.14917816]